lending/lending_fUSD_20240219
["ID","MTS","AMOUNT","RATE_DAILY","PERIOD"]
[314441754,1708356633230,-200.03,0.00036881,2]
[314441755,1708356633239,-445.57,0.00036899,2]
[314441756,1708356633248,-156.83,0.00036928,2]
[314441757,1708356633257,-206.31503793,0.00036928,2]
[314441758,1708356633267,-1802.38510158,0.00037004,2]
[314441764,1708356638199,-22087.61489842,0.00037004,2]
[314441765,1708356638209,-156.83,0.00037028,2]
[314441766,1708356638219,-200.88787041,0.00037041,2]
[314441767,1708356638229,-156.83,0.00037129,2]
[314441768,1708356638238,-3499.83301001,0.00037149,2]
[314441769,1708356638248,-156.83,0.00037229,2]
[314441770,1708356638257,-200.88787041,0.00037303,2]
[314441771,1708356638267,-155.74,0.00037328,2]
[314441772,1708356638276,-156.83,0.0003733,2]
[314441773,1708356638285,-156.83,0.0003743,2]
[314441774,1708356638294,-156.83,0.0003753,2]
[314441775,1708356638303,-200.88787041,0.00037565,2]
[314441776,1708356638313,-174.82,0.00037584,2]
[314441777,1708356638322,-156.83,0.00037631,2]
[314441778,1708356638331,-369.76,0.00037678,2]
[314441779,1708356638340,-349.74,0.00037721,2]
[314441780,1708356638349,-156.83,0.00037731,2]
[314441781,1708356638358,-549.91,0.00037757,2]
[314441782,1708356638368,-3499.83300999,0.00037788,2]
[314441783,1708356638377,-34548.08288189,0.00037814,2]
[314441784,1708356638389,-4407.12441718,0.00037814,2]
[314441785,1708356638401,-358.33485164,0.00037814,2]
[314441786,1708356638417,-5244.133699,0.00037814,2]
[314441787,1708356638429,-2580.071014,0.00037814,2]
[314441788,1708356638440,-1658.84489,0.00037814,2]
[314441789,1708356638451,-4975.86745169,0.00037814,2]
[314441790,1708356638467,-95169.8413946,0.00037814,2]
[314441791,1708356638476,-200.88787041,0.00037827,2]
[314441792,1708356638486,-156.83,0.00037832,2]
[314441793,1708356638495,-1697.53182776,0.00037832,2]
[314441794,1708356638504,-153.08,0.0003786,2]
[314441795,1708356638514,-47130.0,0.00037914,2]
[314441796,1708356638527,-156.83,0.00037932,2]
[314441797,1708356638540,-2451.421,0.00037974,2]
[314441798,1708356638550,-877.708,0.00037974,2]
[314441799,1708356638559,-587.0,0.00038,2]
[314441800,1708356638569,-156.83,0.00038033,2]
[314441801,1708356638578,-200.88787041,0.00038089,2]
[314441802,1708356638588,-156.83,0.00038133,2]
[314441803,1708356638598,-206.31503791,0.00038149,2]
[314441804,1708356638607,-156.83,0.00038233,2]
[314441805,1708356638619,-156.83,0.00038334,2]
[314441806,1708356638630,-200.88787041,0.00038352,2]
[314441807,1708356638639,-150.0,0.00038356,2]
[314441808,1708356638648,-318.22,0.00038356,15]
[314441809,1708356638658,-1697.53182776,0.00038395,2]
[314441810,1708356638667,-3499.83300999,0.00038427,2]
[314441811,1708356638677,-156.83,0.00038434,2]
[314441813,1708356638687,-1250.0,0.000385,2]
[314441815,1708356638696,-300.0,0.00038506,2]
[314441817,1708356638706,-156.83,0.00038535,2]
[314441819,1708356638718,-2411.98117178,0.00038552,14]
[314441821,1708356638728,-241.19811718,0.00038552,14]
[314441823,1708356638738,-153.22,0.00038572,2]
[314441824,1708356638747,-204.30875535,0.00038604,4]
[314441825,1708356638759,-240.20674648,0.00038605,4]
[314441826,1708356638768,-200.88787041,0.00038614,2]
[314441827,1708356638777,-587.0,0.0003863,14]
[314441828,1708356638787,-167.18,0.00038673,2]
[314441829,1708356638796,-250.0,0.000387,120]
[314441830,1708356638805,-354.86,0.000387,2]
[314441831,1708356638814,-152.0,0.000387,3]
[314441832,1708356638824,-200.88787041,0.00038876,2]
[314441833,1708356638833,-11883.13286373,0.000389,2]
[314441834,1708356638843,-1174.91,0.000389,3]
[314441835,1708356638853,-1174.91,0.000389,3]
[314441836,1708356638863,-1174.91,0.000389,3]
[314441837,1708356638872,-1174.91,0.000389,3]
[314441838,1708356638882,-1174.91,0.000389,3]
[314441839,1708356638892,-1174.91,0.000389,3]
[314441840,1708356638901,-1174.91,0.000389,3]
[314441841,1708356638910,-1174.91,0.000389,3]
[314441842,1708356638919,-1174.91,0.000389,3]
[314441843,1708356638928,-1174.91,0.000389,3]
[314441844,1708356638938,-1174.91,0.000389,3]
[314441845,1708356638948,-1174.91,0.000389,3]
[314441846,1708356638959,-1174.91,0.000389,3]
[314441847,1708356638970,-1174.91,0.000389,3]
[314441848,1708356639139,-1174.91,0.000389,3]
[314441849,1708356639149,-1174.91,0.000389,3]
[314441850,1708356639158,-1174.91,0.000389,3]
[314441851,1708356639167,-1174.91,0.000389,3]
[314441852,1708356639176,-1174.91,0.000389,3]
[314441853,1708356639186,-1174.91,0.000389,3]
[314441854,1708356639195,-152.34,0.000389,3]
[314441855,1708356639204,-152.34,0.000389,3]
[314441856,1708356639214,-152.34,0.000389,3]
[314441857,1708356639223,-153.22,0.00038922,2]
[314441858,1708356639241,-1119.29277273,0.00038939,2]
[314441859,1708356639252,-1697.53182776,0.00038958,2]
[314441860,1708356639262,-200.0,0.00038987,3]
[314441861,1708356639272,-200.0,0.00038987,2]
[314441862,1708356639282,-3499.83300999,0.00039066,2]
[314441863,1708356639292,-2772.13570849,0.0003907,8]
[314441864,1708356639301,-729.3284614,0.0003907,8]
[314441865,1708356639311,-800.0,0.0003908,5]
[314441866,1708356639321,-545.21136,0.000391,2]
[314441867,1708356639331,-150.0,0.000391,2]
[314441868,1708356639340,-200.88787041,0.00039138,2]
[314441869,1708356639350,-445.57,0.00039163,2]
[314441870,1708356639360,-1059.15708849,0.000392,9]
[314441871,1708356639370,-220.61,0.0003926,2]
[314441872,1708356639379,-153.22,0.00039273,2]
[314441873,1708356639389,-74464.11714356,0.000393,5]
[314441874,1708356639399,-150.0,0.00039366,2]
[314441875,1708356639408,-206.31503791,0.0003937,2]
[314441876,1708356639419,-181.58261503,0.00039376,2]
[314441877,1708356639429,-908.55336042,0.0003938,2]
[314441878,1708356639438,-177.25733619,0.0003939,2]
[314441879,1708356639449,-153.98679885,0.0003939,4]
[314441880,1708356639460,-5000.0,0.0003939,3]
[314441881,1708356639471,-1059.15708849,0.00039391,9]
[314441882,1708356639481,-3907.5027204,0.000394,13]
[314441883,1708356639491,-200.0,0.000394,14]
[314441884,1708356639500,-352.869575,0.000394,14]
[314441885,1708356639509,-200.88787041,0.000394,2]
[314441886,1708356639519,-366.16150405,0.000394,2]
[314441887,1708356639529,-176.57024903,0.000394,2]
[314441888,1708356639539,-848.34194608,0.000394,2]
[314441889,1708356639549,-958.35606577,0.000394,2]
[314441890,1708356639560,-222.27316353,0.0003946,2]
[314441891,1708356639571,-83659.7521935,0.00039466,5]
[314441892,1708356639580,-83659.7521935,0.0003947,5]
[314441893,1708356639590,-215.885558,0.00039476,14]
[314441894,1708356639600,-215.885558,0.00039476,14]
[314441895,1708356639609,-151.0,0.00039476,14]
[314441896,1708356639618,-324.181936,0.00039476,2]
[314441897,1708356639628,-324.181936,0.00039476,2]
[314441898,1708356639637,-151.0,0.00039476,14]
[314441899,1708356639647,-151.0,0.00039476,14]
[314441900,1708356639656,-151.0,0.00039476,14]
[314441901,1708356639666,-189.909828,0.00039476,14]
[314441902,1708356639675,-151.0,0.00039476,14]
[314441903,1708356639685,-910.649243,0.00039476,14]
[314441904,1708356639694,-910.649243,0.00039476,14]
[314441905,1708356639703,-345.885262,0.00039476,14]
[314441906,1708356639714,-345.885262,0.00039476,14]
[314441907,1708356639724,-913.344051,0.00039476,14]
[314441908,1708356639734,-186.718121,0.00039476,14]
[314441909,1708356639743,-913.344051,0.00039476,14]
[314441910,1708356639753,-186.718121,0.00039476,14]
[314441911,1708356639762,-407.825897,0.00039476,14]
[314441912,1708356639772,-407.825897,0.00039476,14]
[314441913,1708356639783,-225.841265,0.00039476,14]
[314441914,1708356639792,-225.841265,0.00039476,14]
[314441915,1708356639802,-713.531852,0.00039476,14]
[314441916,1708356639811,-151.0,0.00039476,14]
[314441917,1708356639821,-2307.170144,0.00039476,14]
[314441918,1708356639831,-713.531852,0.00039476,14]
[314441919,1708356639841,-2307.170144,0.00039476,14]
[314441920,1708356639851,-40955.6863774,0.00039476,2]
[314441921,1708356639861,-1847.297373,0.00039476,14]
[314441922,1708356639871,-1847.297373,0.00039476,14]
[314441923,1708356639881,-1383.462315,0.00039476,14]
[314441924,1708356639893,-151.0,0.00039476,14]
[314441925,1708356639904,-1383.462315,0.00039476,14]
[314441926,1708356639914,-151.0,0.00039476,14]
[314441927,1708356639924,-151.0,0.00039476,14]
[314441928,1708356639934,-151.0,0.00039476,14]
[314441929,1708356639948,-218.37153,0.00039476,14]
[314441930,1708356639958,-218.37153,0.00039476,14]
[314441931,1708356639971,-151.0,0.00039476,14]
[314441932,1708356639982,-151.0,0.00039476,14]
[314441933,1708356639992,-298.0316,0.00039476,14]
[314441934,1708356640003,-298.0316,0.00039476,14]
[314441935,1708356640013,-151.0,0.00039476,14]
[314441936,1708356640023,-151.0,0.00039476,14]
[314441937,1708356640033,-218.495732,0.00039476,14]
[314441938,1708356640042,-218.495732,0.00039476,14]
[314441939,1708356640052,-5641.081418,0.00039476,14]
[314441941,1708356640061,-151.0,0.00039476,14]
[314441942,1708356640071,-159.605412,0.00039476,14]
[314441943,1708356640082,-151.0,0.00039476,14]
[314441944,1708356640092,-159.605412,0.00039476,14]
[314441945,1708356640103,-151.0,0.00039476,14]
[314441946,1708356640113,-151.0,0.00039476,14]
[314441947,1708356640122,-151.0,0.00039476,14]
[314441948,1708356640132,-217.99017,0.00039476,14]
[314441949,1708356640141,-151.0,0.00039476,14]
[314441950,1708356640151,-217.99017,0.00039476,14]
[314441951,1708356640160,-151.0,0.00039476,14]
[314441952,1708356640169,-5641.081418,0.00039476,14]
[314441953,1708356640179,-264.716455,0.00039476,14]
[314441954,1708356640189,-176.860522,0.00039476,14]
[314441955,1708356640198,-264.716455,0.00039476,14]
[314441956,1708356640208,-176.860522,0.00039476,14]
[314441957,1708356640221,-151.0,0.00039476,14]
[314441958,1708356640230,-151.0,0.00039476,14]
[314441959,1708356640240,-151.0,0.00039476,14]
[314441960,1708356640250,-11643.4331665,0.00039476,2]
[314441961,1708356640260,-4294.420854,0.00039476,2]
[314441962,1708356640269,-316.00354119,0.00039476,2]
[314441963,1708356640279,-200.0,0.00039478,3]
[314441964,1708356640289,-83659.7521935,0.0003948,5]
[314441965,1708356640299,-151.0,0.0003948,14]
[314441966,1708356640308,-151.0,0.0003948,14]
[314441967,1708356640318,-151.0,0.0003948,14]
[314441968,1708356640327,-910.649243,0.0003948,14]
[314441969,1708356640337,-910.649243,0.0003948,14]
[314441970,1708356640347,-345.885262,0.0003948,14]
[314441971,1708356640356,-345.885262,0.0003948,14]
[314441972,1708356640366,-913.344051,0.0003948,14]
[314441973,1708356640378,-186.718121,0.0003948,14]
[314441974,1708356640387,-913.344051,0.0003948,14]
[314441975,1708356640397,-186.718121,0.0003948,14]
[314441976,1708356640407,-407.825897,0.0003948,14]
[314441977,1708356640419,-407.825897,0.0003948,14]
[314441978,1708356640428,-225.841265,0.0003948,14]
[314441979,1708356640437,-225.841265,0.0003948,14]
[314441980,1708356640447,-713.531852,0.0003948,14]
[314441981,1708356640458,-151.0,0.0003948,14]
[314441982,1708356640471,-2307.170144,0.0003948,14]
[314441983,1708356640480,-713.531852,0.0003948,14]
[314441984,1708356640489,-2307.170144,0.0003948,14]
[314441985,1708356640499,-1847.297373,0.0003948,14]
[314441986,1708356640508,-1847.297373,0.0003948,14]
[314441987,1708356640517,-1383.462315,0.0003948,14]
[314441988,1708356640527,-151.0,0.0003948,14]
[314441989,1708356640538,-1383.462315,0.0003948,14]
[314441990,1708356640548,-151.0,0.0003948,14]
[314441991,1708356640557,-151.0,0.0003948,14]
[314441992,1708356640567,-151.0,0.0003948,14]
[314441993,1708356640577,-218.37153,0.0003948,14]
[314441994,1708356640586,-218.37153,0.0003948,14]
[314441995,1708356640595,-151.0,0.0003948,14]
[314441996,1708356640605,-151.0,0.0003948,14]
[314441997,1708356640614,-298.0316,0.0003948,14]
[314441998,1708356640623,-298.0316,0.0003948,14]
[314441999,1708356640633,-151.0,0.0003948,14]
[314442000,1708356640642,-151.0,0.0003948,14]
[314442001,1708356640651,-151.0,0.0003948,14]
[314442002,1708356640660,-218.495732,0.0003948,14]
[314442003,1708356640670,-218.495732,0.0003948,14]
[314442004,1708356640680,-5641.081418,0.0003948,14]
[314442005,1708356640690,-5641.081418,0.0003948,14]
[314442006,1708356640699,-159.605412,0.0003948,14]
[314442007,1708356640709,-159.605412,0.0003948,14]
[314442008,1708356640720,-151.0,0.0003948,14]
[314442009,1708356640729,-151.0,0.0003948,14]
[314442010,1708356640738,-159.605412,0.0003948,14]
[314442011,1708356640748,-159.605412,0.0003948,14]
[314442012,1708356640757,-151.0,0.0003948,14]
[314442013,1708356640767,-151.0,0.0003948,14]
[314442015,1708356640776,-151.0,0.0003948,14]
[314442017,1708356640786,-216.180226,0.0003948,14]
[314442019,1708356640795,-151.0,0.0003948,14]
[314442021,1708356640804,-151.0,0.0003948,14]
[314442022,1708356640813,-217.99017,0.0003948,14]
[314442023,1708356640823,-217.99017,0.0003948,14]
[314442024,1708356640833,-151.0,0.0003948,14]
[314442025,1708356640842,-151.0,0.0003948,14]
[314442026,1708356640852,-217.99017,0.0003948,14]
[314442027,1708356640862,-283.0,0.0003948,14]
[314442028,1708356640871,-217.99017,0.0003948,14]
[314442029,1708356640881,-5641.081418,0.0003948,14]
[314442030,1708356640890,-5641.081418,0.0003948,14]
[314442031,1708356640900,-264.716455,0.0003948,14]
[314442032,1708356640909,-264.716455,0.0003948,14]
[314442033,1708356640919,-176.860522,0.0003948,14]
[314442034,1708356640928,-176.860522,0.0003948,14]
[314442035,1708356640937,-264.716455,0.0003948,14]
[314442036,1708356640947,-264.716455,0.0003948,14]
[314442037,1708356640956,-176.860522,0.0003948,14]
[314442038,1708356640966,-176.860522,0.0003948,14]
[314442039,1708356640976,-234.021718,0.0003948,14]
[314442040,1708356640985,-234.021718,0.0003948,14]
[314442041,1708356640995,-151.0,0.0003948,14]
[314442042,1708356641005,-151.0,0.0003948,14]
[314442043,1708356641014,-234.021718,0.0003948,14]
[314442044,1708356641024,-234.021718,0.0003948,14]
[314442045,1708356641033,-151.0,0.0003948,14]
[314442046,1708356641042,-156.261213,0.0003948,14]
[314442047,1708356641052,-156.261213,0.0003948,14]
[314442048,1708356641061,-6982.153008,0.0003948,14]
[314442049,1708356641070,-6982.153008,0.0003948,14]
[314442050,1708356641080,-156.261213,0.0003948,14]
[314442051,1708356641089,-156.261213,0.0003948,14]
[314442052,1708356641098,-6982.153008,0.0003948,14]
[314442053,1708356641108,-6982.153008,0.0003948,14]
[314442054,1708356641117,-1181.119558,0.0003948,14]
[314442055,1708356641126,-1181.119558,0.0003948,14]
[314442056,1708356641136,-1181.119558,0.0003948,14]
[314442057,1708356641145,-1181.119558,0.0003948,14]
[314442058,1708356641154,-151.0,0.0003948,14]
[314442059,1708356641163,-151.0,0.0003948,14]
[314442060,1708356641173,-234.983147,0.0003948,14]
[314442061,1708356641182,-151.0,0.0003948,14]
[314442062,1708356641191,-151.0,0.0003948,14]
[314442063,1708356641200,-229.22524,0.0003948,14]
[314442064,1708356641210,-229.22524,0.0003948,14]
[314442065,1708356641220,-229.22524,0.0003948,14]
[314442066,1708356641231,-229.22524,0.0003948,14]
[314442067,1708356641241,-151.0,0.0003948,14]
[314442068,1708356641250,-151.0,0.0003948,14]
[314442069,1708356641260,-151.0,0.0003948,14]
[314442070,1708356641269,-151.0,0.0003948,14]
[314442071,1708356641278,-151.0,0.0003948,14]
[314442072,1708356641288,-151.0,0.0003948,14]
[314442073,1708356641298,-151.0,0.0003948,14]
[314442074,1708356641307,-198.306835,0.0003948,14]
[314442075,1708356641317,-682.094103,0.0003948,14]
[314442076,1708356641325,-682.094103,0.0003948,14]
[314442077,1708356641334,-682.094103,0.0003948,14]
[314442078,1708356641343,-682.094103,0.0003948,14]
[314442079,1708356641352,-190.454282,0.0003948,14]
[314442080,1708356641362,-190.454282,0.0003948,14]
[314442081,1708356641371,-151.0,0.0003948,14]
[314442082,1708356641380,-151.0,0.0003948,14]
[314442083,1708356641390,-151.0,0.0003948,14]
[314442084,1708356641399,-190.454282,0.0003948,14]
[314442085,1708356641408,-151.0,0.0003948,14]
[314442086,1708356641418,-190.454282,0.0003948,14]
[314442087,1708356641427,-151.0,0.0003948,14]
[314442088,1708356641436,-151.0,0.0003948,14]
[314442089,1708356641445,-151.0,0.0003948,14]
[314442090,1708356641454,-151.0,0.0003948,14]
[314442091,1708356641464,-151.0,0.0003948,7]
[314442092,1708356641476,-151.0,0.0003948,7]
[314442093,1708356641485,-151.0,0.0003948,7]
[314442094,1708356641494,-151.0,0.0003948,7]
[314442095,1708356641503,-157.991353,0.0003948,14]
[314442096,1708356641512,-157.991353,0.0003948,14]
[314442097,1708356641522,-157.991353,0.0003948,14]
[314442098,1708356641533,-157.991353,0.0003948,14]
[314442099,1708356641543,-151.0,0.0003948,14]
[314442100,1708356641557,-151.0,0.0003948,14]
[314442101,1708356641567,-151.0,0.0003948,14]
[314442102,1708356641577,-214.585497,0.0003948,14]
[314442103,1708356641586,-151.0,0.0003948,14]
[314442104,1708356641721,-214.585497,0.0003948,14]
[314442105,1708356641730,-214.585497,0.0003948,14]
[314442106,1708356641739,-214.585497,0.0003948,14]
[314442107,1708356641748,-503.968345,0.0003948,14]
[314442108,1708356641758,-503.968345,0.0003948,14]
[314442109,1708356641768,-151.0,0.0003948,14]
[314442110,1708356641779,-151.0,0.0003948,14]
[314442111,1708356641788,-503.968345,0.0003948,14]
[314442112,1708356641797,-503.968345,0.0003948,14]
[314442113,1708356641807,-2490.372503,0.0003948,14]
[314442114,1708356641816,-2490.372503,0.0003948,14]
[314442115,1708356641826,-2490.372503,0.0003948,14]
[314442116,1708356641835,-2490.372503,0.0003948,14]
[314442117,1708356641845,-167319.504387,0.0003948,5]
[314442118,1708356641854,-180.0,0.00039483,2]
[314442119,1708356641863,-3319.32799788,0.00039489,2]
[314442120,1708356641872,-500.0,0.0003949,2]
[314442121,1708356641881,-500.0,0.0003949,2]
[314442122,1708356641891,-500.0,0.0003949,2]
[314442123,1708356641901,-1266.0,0.0003949,2]
[314442124,1708356641910,-151.0,0.0003949,14]
[314442125,1708356641919,-151.0,0.0003949,14]
[314442126,1708356641928,-151.0,0.0003949,14]
[314442127,1708356641938,-232.572801,0.0003949,14]
[314442128,1708356641947,-232.572801,0.0003949,14]
[314442129,1708356641956,-151.0,0.0003949,14]
[314442130,1708356641967,-151.0,0.0003949,14]
[314442131,1708356641976,-151.0,0.0003949,14]
[314442132,1708356641985,-151.0,0.0003949,14]
[314442134,1708356641995,-151.0,0.0003949,14]
[314442136,1708356642004,-151.0,0.0003949,14]
[314442138,1708356642014,-151.0,0.0003949,7]
[314442140,1708356642023,-151.0,0.0003949,7]
[314442142,1708356642033,-151.0,0.0003949,7]
[314442144,1708356642042,-151.0,0.0003949,7]
[314442145,1708356642051,-151.0,0.0003949,3]
[314442147,1708356642060,-151.0,0.0003949,3]
[314442149,1708356642070,-151.0,0.0003949,3]
[314442151,1708356642079,-279.734664,0.0003949,3]
[314442153,1708356642088,-151.0,0.0003949,14]
[314442155,1708356642098,-151.0,0.0003949,14]
[314442157,1708356642108,-272.333018,0.0003949,14]
[314442159,1708356642117,-272.333018,0.0003949,14]
[314442161,1708356642126,-272.333018,0.0003949,14]
[314442163,1708356642135,-272.333018,0.0003949,14]
[314442165,1708356642144,-999.912961,0.0003949,14]
[314442167,1708356642153,-999.912961,0.0003949,14]
[314442169,1708356642162,-999.912961,0.0003949,14]
[314442170,1708356642171,-999.912961,0.0003949,14]
[314442171,1708356642185,-151.0,0.0003949,14]
[314442172,1708356642193,-151.0,0.0003949,14]
[314442173,1708356642202,-698.250469,0.0003949,14]
[314442174,1708356642211,-698.250469,0.0003949,14]
[314442175,1708356642223,-698.250469,0.0003949,14]
[314442176,1708356642232,-698.250469,0.0003949,14]
[314442177,1708356642241,-151.0,0.0003949,14]
[314442178,1708356642250,-151.0,0.0003949,14]
[314442179,1708356642260,-398.703186,0.0003949,14]
[314442180,1708356642269,-398.703186,0.0003949,14]
[314442181,1708356642278,-398.703186,0.0003949,14]
[314442182,1708356642287,-398.703186,0.0003949,14]
[314442183,1708356642295,-603.212313,0.0003949,14]
[314442184,1708356642304,-603.212313,0.0003949,14]
[314442185,1708356642313,-603.212313,0.0003949,14]
[314442186,1708356642322,-603.212313,0.0003949,14]
[314442187,1708356642331,-151.0,0.0003949,14]
[314442188,1708356642339,-151.0,0.0003949,14]
[314442189,1708356642348,-151.0,0.0003949,14]
[314442190,1708356642357,-194.457587,0.0003949,14]
[314442191,1708356642366,-151.0,0.0003949,14]
[314442192,1708356642375,-151.0,0.0003949,14]
[314442193,1708356642384,-1678.611845,0.0003949,14]
[314442194,1708356642393,-1678.611845,0.0003949,14]
[314442195,1708356642402,-1678.611845,0.0003949,14]
[314442196,1708356642411,-1678.611845,0.0003949,14]
[314442197,1708356642420,-275.634485,0.0003949,14]
[314442198,1708356642429,-275.634485,0.0003949,14]
[314442199,1708356642439,-275.634485,0.0003949,14]
[314442200,1708356642448,-275.634485,0.0003949,14]
[314442201,1708356642458,-215.885558,0.0003949,14]
[314442202,1708356642469,-215.885558,0.0003949,14]
[314442203,1708356642478,-215.885558,0.0003949,14]
[314442204,1708356642488,-215.885558,0.0003949,14]
[314442205,1708356642498,-151.0,0.0003949,14]
[314442206,1708356642506,-151.0,0.0003949,14]
[314442207,1708356642515,-324.181936,0.0003949,2]
[314442208,1708356642527,-324.181936,0.0003949,2]
[314442209,1708356642541,-324.181936,0.0003949,2]
[314442210,1708356642552,-324.181936,0.0003949,2]
[314442211,1708356642562,-151.0,0.0003949,14]
[314442212,1708356642571,-151.0,0.0003949,14]
[314442213,1708356642582,-233.786916,0.0003949,14]
[314442214,1708356642591,-151.0,0.0003949,14]
[314442215,1708356642600,-151.0,0.0003949,14]
[314442216,1708356642609,-151.0,0.0003949,14]
[314442217,1708356642620,-151.0,0.0003949,14]
[314442218,1708356642630,-910.649243,0.0003949,14]
[314442219,1708356642640,-910.649243,0.0003949,14]
[314442220,1708356642649,-910.649243,0.0003949,14]
[314442221,1708356642658,-910.649243,0.0003949,14]
[314442222,1708356642667,-345.885262,0.0003949,14]
[314442223,1708356642676,-345.885262,0.0003949,14]
[314442224,1708356642686,-345.885262,0.0003949,14]
[314442225,1708356642695,-345.885262,0.0003949,14]
[314442226,1708356642704,-913.344051,0.0003949,14]
[314442227,1708356642713,-186.718121,0.0003949,14]
[314442228,1708356642725,-913.344051,0.0003949,14]
[314442229,1708356642734,-186.718121,0.0003949,14]
[314442230,1708356642743,-407.825897,0.0003949,14]
[314442231,1708356642752,-407.825897,0.0003949,14]
[314442232,1708356642762,-225.841265,0.0003949,14]
[314442233,1708356642772,-225.841265,0.0003949,14]
[314442234,1708356642782,-225.841265,0.0003949,14]
[314442235,1708356642791,-225.841265,0.0003949,14]
[314442236,1708356642800,-713.531852,0.0003949,14]
[314442237,1708356642809,-151.0,0.0003949,14]
[314442238,1708356642819,-2307.170144,0.0003949,14]
[314442239,1708356642833,-713.531852,0.0003949,14]
[314442240,1708356642848,-2307.170144,0.0003949,14]
[314442241,1708356642864,-1847.297373,0.0003949,14]
[314442242,1708356642876,-1847.297373,0.0003949,14]
[314442243,1708356642888,-1383.462315,0.0003949,14]
[314442244,1708356642902,-151.0,0.0003949,14]
[314442245,1708356642917,-1383.462315,0.0003949,14]
[314442246,1708356642931,-151.0,0.0003949,14]
[314442247,1708356642945,-151.0,0.0003949,14]
[314442248,1708356642958,-151.0,0.0003949,14]
[314442249,1708356642971,-218.37153,0.0003949,14]
[314442250,1708356642986,-218.37153,0.0003949,14]
[314442251,1708356642999,-151.0,0.0003949,14]
[314442252,1708356643012,-151.0,0.0003949,14]
[314442253,1708356643026,-298.0316,0.0003949,14]
[314442254,1708356643039,-298.0316,0.0003949,14]
[314442256,1708356643050,-151.0,0.0003949,14]
[314442258,1708356643065,-151.0,0.0003949,14]
[314442259,1708356643078,-218.495732,0.0003949,14]
[314442260,1708356643092,-218.495732,0.0003949,14]
[314442261,1708356643106,-5641.081418,0.0003949,14]
[314442262,1708356643119,-159.605412,0.0003949,14]
[314442263,1708356643133,-151.0,0.0003949,14]
[314442264,1708356643145,-159.605412,0.0003949,14]
[314442265,1708356643159,-151.0,0.0003949,14]
[314442266,1708356643173,-151.0,0.0003949,14]
[314442267,1708356643188,-217.99017,0.0003949,14]
[314442268,1708356643201,-151.0,0.0003949,14]
[314442269,1708356643213,-217.99017,0.0003949,14]
[314442270,1708356643224,-5641.081418,0.0003949,14]
[314442271,1708356643235,-250979.25658,0.0003949,5]
[314442272,1708356643249,-264.716455,0.0003949,14]
[314442273,1708356643261,-176.860522,0.0003949,14]
[314442274,1708356643275,-264.716455,0.0003949,14]
[314442275,1708356643286,-176.860522,0.0003949,14]
[314442276,1708356643296,-234.021718,0.0003949,14]
[314442277,1708356643307,-151.0,0.0003949,14]
[314442278,1708356643318,-234.021718,0.0003949,14]
[314442279,1708356643330,-156.261213,0.0003949,14]
[314442280,1708356643342,-6982.153008,0.0003949,14]
[314442281,1708356643354,-156.261213,0.0003949,14]
[314442282,1708356643366,-6982.153008,0.0003949,14]
[314442283,1708356643377,-1181.119558,0.0003949,14]
[314442284,1708356643388,-1181.119558,0.0003949,14]
[314442285,1708356643399,-151.0,0.0003949,14]
[314442286,1708356643411,-151.0,0.0003949,14]
[314442287,1708356643423,-229.22524,0.0003949,14]
[314442288,1708356643435,-229.22524,0.0003949,14]
[314442289,1708356643448,-151.0,0.0003949,14]